fUSD/lending_fUSD_20251231
["ID","MTS","AMOUNT","RATE_DAILY","PERIOD"]
[400186022,1767178232160,-1848.46471605,0.00013454,2]
[400186023,1767178232172,-1300.0,0.00013454,2]
[400186024,1767178237500,-295.77017953,0.00013453,2]
[400186025,1767178237527,-204.22982047,0.00013453,2]
[400186026,1767178237538,-500.0,0.00013453,2]
[400186027,1767178237547,-500.0,0.00013453,2]
[400186028,1767178237557,-500.0,0.00013453,2]
[400186029,1767178237567,-500.0,0.00013453,2]
[400186030,1767178237577,-500.0,0.00013453,2]
[400186031,1767178237586,-500.0,0.00013453,2]
[400186032,1767178237596,-500.0,0.00013453,2]
[400186033,1767178237606,-500.0,0.00013453,2]
[400186034,1767178237616,-500.0,0.00013453,2]
[400186035,1767178237626,-500.0,0.00013453,2]
[400186036,1767178237636,-500.0,0.00013453,2]
[400186038,1767178237646,-500.0,0.00013453,2]
[400186040,1767178237657,-500.0,0.00013453,2]
[400186042,1767178237667,-500.0,0.00013453,2]
[400186044,1767178237676,-500.0,0.00013453,2]
[400186046,1767178237686,-500.0,0.00013453,2]
[400186048,1767178237695,-500.0,0.00013453,2]
[400186049,1767178237704,-500.0,0.00013453,2]
[400186051,1767178237714,-500.0,0.00013453,2]
[400186052,1767178237724,-500.0,0.00013453,2]
[400186054,1767178237733,-500.0,0.00013453,2]
[400186056,1767178237742,-500.0,0.00013453,2]
[400186059,1767178237753,-500.0,0.00013453,2]
[400186060,1767178237767,-500.0,0.00013453,2]
[400186062,1767178237776,-500.0,0.00013453,2]
[400186064,1767178237788,-500.0,0.00013453,2]
[400186067,1767178237799,-500.0,0.00013453,2]
[400186068,1767178237809,-500.0,0.00013453,2]
[400186072,1767178237819,-500.0,0.00013453,2]
[400186074,1767178237828,-384.59316103,0.00013453,2]
[400186076,1767178237839,-500.0,0.00013453,2]
[400186078,1767178237849,-500.0,0.00013453,2]
[400186080,1767178237859,-41594.12719133,0.00013454,2]
[400186082,1767178237871,-62398.04349625,0.00013454,2]
[400186084,1767178237883,-3102.75123834,0.00013454,2]
[400186087,1767178237902,-328.31959918,0.00013454,2]
[400186235,1767178239474,-2900.18651994,0.00013454,2]
[400186237,1767178239486,-883.15138334,0.00013454,2]
[400186239,1767178239499,-242028.7626935,0.00013454,2]
[400186242,1767178239510,-12560.20347121,0.00013454,2]
[400186245,1767178239535,-421.98105131,0.00013454,2]
[400186247,1767178239547,-1854.36,0.00013454,2]
[400186250,1767178239558,-380.30947352,0.00013454,2]
[400186253,1767178239583,-40000.0,0.00013454,2]
[400186256,1767178239595,-1275.68569252,0.00013454,2]
[400186261,1767178239638,-446488.35909974,0.00013454,2]
[400186263,1767178239648,-150.0,0.00013457,2]
[400186265,1767178239658,-380.28936169,0.00013458,2]
[400186267,1767178239667,-4103.1399,0.00013458,2]
[400186269,1767178239677,-8996.5886,0.00013458,2]
[400186271,1767178239687,-862.96,0.00013551,2]
[400186273,1767178239696,-1097.619,0.00013555,2]
[400186275,1767178239706,-150.99,0.00013555,2]
[400186277,1767178239716,-4385.33,0.00013555,2]
[400186279,1767178239725,-50799.1,0.00013555,2]
[400186281,1767178239734,-202.34852966,0.00013556,2]
[400186283,1767178239744,-1000.0,0.00013656,2]
[400186285,1767178239753,-217.85001296,0.0001369,2]
[400186287,1767178239766,-500.0,0.00013698,2]
[400186289,1767178239777,-500.0,0.00013698,2]
[400186291,1767178239786,-500.0,0.00013698,2]
[400186294,1767178239796,-500.0,0.00013698,2]
[400186296,1767178239807,-500.0,0.00013698,2]
[400186298,1767178239816,-500.0,0.00013698,2]
[400186300,1767178239827,-243.30215833,0.00013698,2]
[400186302,1767178239839,-500.0,0.00013698,2]
[400186304,1767178239848,-500.0,0.00013698,2]
[400186306,1767178239859,-500.0,0.00013698,2]
[400186308,1767178239868,-500.0,0.00013698,2]
[400186310,1767178239877,-500.0,0.00013698,2]
[400186312,1767178239886,-500.0,0.00013698,2]
[400186314,1767178239896,-500.0,0.00013698,2]
[400186316,1767178239906,-605.27361039,0.00013698,2]
[400186318,1767178239915,-500.0,0.00013698,2]
[400186320,1767178239924,-500.0,0.00013698,2]
[400186322,1767178239933,-500.0,0.00013698,2]
[400186324,1767178239943,-500.0,0.00013698,2]
[400186326,1767178239952,-382.48973277,0.00013698,2]
[400186328,1767178239962,-500.0,0.00013698,2]
[400186330,1767178239971,-200.0,0.00013699,2]
[400186332,1767178239981,-3720.37620064,0.00013751,2]
[400186334,1767178239991,-6078.70383305,0.00013751,2]
[400186337,1767178240000,-500.0,0.00013755,2]
[400186339,1767178240010,-500.0,0.00013755,2]
[400186341,1767178240019,-500.0,0.00013755,2]
[400186343,1767178240028,-535.01294338,0.00013755,2]
[400186345,1767178240038,-500.0,0.00013755,2]
[400186347,1767178240047,-500.0,0.00013755,2]
[400186349,1767178240056,-500.0,0.00013755,2]
[400186351,1767178240065,-500.0,0.00013755,2]
[400186353,1767178240074,-500.0,0.00013755,2]
[400186355,1767178240084,-500.0,0.00013755,2]
[400186357,1767178240094,-825.23,0.00013812,2]
[400186359,1767178240105,-862.96,0.00013825,2]
[400186361,1767178240114,-862.96,0.00014099,2]
[400186363,1767178240123,-202.34852965,0.00014113,2]
[400186365,1767178240132,-3720.37620064,0.00014144,2]
[400186367,1767178240144,-6078.70383305,0.00014144,2]
[400186370,1767178240155,-166.66,0.00014233,2]
[400186372,1767178240165,-862.96,0.00014373,2]
[400186374,1767178240174,-150.0,0.00014465,2]
[400186376,1767178240184,-150.0,0.00014465,2]
[400186378,1767178240194,-150.0,0.00014465,2]
[400186380,1767178240203,-150.0,0.00014465,2]
[400186382,1767178240213,-150.0,0.00014465,2]
[400186384,1767178240222,-150.0,0.00014465,2]
[400186386,1767178240231,-150.0,0.00014465,2]
[400186388,1767178240241,-150.0,0.00014465,2]
[400186390,1767178240250,-500.0,0.00014465,2]
[400186392,1767178240259,-150.0,0.00014465,2]
[400186394,1767178240269,-150.0,0.00014465,2]
[400186396,1767178240278,-150.0,0.00014465,2]
[400186398,1767178240288,-150.0,0.00014465,2]
[400186400,1767178240297,-500.0,0.00014465,2]
[400186402,1767178240307,-150.0,0.00014465,2]
[400186404,1767178240316,-1200.0,0.00014469,2]
[400186406,1767178240325,-420.0,0.00014469,2]
[400186408,1767178240335,-825.23,0.00014503,2]
[400186410,1767178240344,-300.0,0.00014515,2]
[400186412,1767178240354,-411.80268287,0.00014515,2]
[400186414,1767178240363,-250.0,0.00014515,2]
[400186416,1767178240373,-1680.0,0.00014516,2]
[400186418,1767178240382,-500.0,0.00014519,2]
[400186420,1767178240392,-150.0,0.0001452,2]
[400186422,1767178240402,-150.0,0.0001452,2]
[400186424,1767178240411,-280.14216988,0.0001452,2]
[400186426,1767178240421,-232.39481125,0.0001452,2]
[400186428,1767178240430,-150.0,0.0001452,2]
[400186430,1767178240439,-150.0,0.0001452,2]
[400186432,1767178240450,-200.0,0.0001452,2]
[400186434,1767178240459,-219.0,0.0001452,2]
[400186436,1767178240468,-500.0,0.0001452,2]
[400186438,1767178240477,-150.0,0.0001452,2]
[400186440,1767178240488,-150.0,0.0001452,2]
[400186442,1767178240497,-500.0,0.0001452,2]
[400186444,1767178240507,-150.0,0.0001452,2]
[400186446,1767178240516,-3720.37620064,0.00014538,2]
[400186448,1767178240526,-8314.1,0.00014547,2]
[400186450,1767178240536,-227.52864205,0.00014556,2]
[400186453,1767178240546,-255.0,0.00014574,2]
[400186455,1767178240556,-150.0,0.00014575,2]
[400186457,1767178240566,-150.0,0.00014575,2]
[400186458,1767178240575,-200.0,0.00014575,2]
[400186460,1767178240584,-200.0,0.00014575,2]
[400186462,1767178240593,-500.0,0.00014575,2]
[400186464,1767178240603,-150.0,0.00014575,2]
[400186466,1767178240612,-200.0,0.00014575,2]
[400186468,1767178240623,-453.0,0.00014575,2]
[400186470,1767178240632,-200.0,0.00014575,2]
[400186473,1767178240643,-150.0,0.00014629,2]
[400186475,1767178240653,-150.0,0.00014629,2]
[400186477,1767178240663,-569.44379661,0.00014629,2]
[400186479,1767178240672,-150.0,0.00014629,2]
[400186481,1767178240682,-862.96,0.00014647,2]
[400186483,1767178240691,-202.34852965,0.00014671,2]
[400186485,1767178240701,-254.0,0.00014684,2]
[400186487,1767178240711,-247.13609629,0.00014684,2]
[400186489,1767178240720,-250.0,0.00014684,2]
[400186491,1767178240729,-166.66,0.00014703,2]
[400186493,1767178240738,-197.78,0.00014817,2]
[400186495,1767178240748,-277.29,0.00014818,2]
[400186497,1767178240760,-862.96,0.00014921,2]
[400186499,1767178240769,-3720.37620064,0.00014932,2]
[400186501,1767178240779,-500.0,0.00015041,2]
[400186503,1767178240788,-500.0,0.00015041,2]
[400186505,1767178240799,-166.66,0.00015173,2]
[400186507,1767178240809,-825.23,0.00015193,2]
[400186509,1767178240818,-862.96,0.00015195,2]
[400186511,1767178240829,-202.34852965,0.00015228,2]
[400186513,1767178240839,-150.0,0.00015288,2]
[400186515,1767178240848,-150.0,0.00015288,2]
[400186517,1767178240858,-150.0,0.00015288,2]
[400186519,1767178240868,-150.0,0.00015288,2]
[400186521,1767178240878,-150.0,0.00015288,2]
[400186523,1767178240887,-150.0,0.00015288,2]
[400186525,1767178240897,-150.0,0.00015288,2]
[400186527,1767178240907,-150.0,0.00015288,2]
[400186529,1767178240916,-150.00000001,0.00015288,2]
[400186531,1767178240925,-3720.37620064,0.00015325,2]
[400186533,1767178240935,-399.65569701,0.00015342,2]
[400186535,1767178240944,-862.96,0.00015469,2]
[400186537,1767178240953,-150.0,0.00015571,2]
[400186540,1767178240964,-166.66,0.00015642,2]
[400186542,1767178240973,-3720.37620064,0.00015719,2]
[400186544,1767178240983,-862.96,0.00015743,2]
[400186546,1767178240993,-227.52864205,0.00015754,2]
[400186548,1767178241002,-433.0,0.00015785,2]
[400186550,1767178241012,-202.34852965,0.00015785,2]
[400186552,1767178241022,-500.0,0.00015786,2]
[400186554,1767178241031,-151.0,0.00015787,2]
[400186556,1767178241041,-500.0,0.00015789,2]
[400186558,1767178241050,-177.66511868,0.00015789,2]
[400186560,1767178241060,-230258.63,0.0001579,2]
[400186562,1767178241070,-150.0,0.00015854,2]
[400186564,1767178241080,-150.0,0.00015854,2]
[400186566,1767178241090,-150.0,0.00015854,2]
[400186568,1767178241099,-587.0,0.00015865,2]
[400186570,1767178241109,-825.23,0.00015884,2]
[400186572,1767178241118,-234.4136249,0.000159,2]
[400186574,1767178241128,-1328.0,0.00015939,2]
[400186576,1767178241137,-613.0,0.00015939,2]
[400186578,1767178241147,-1528.0,0.00015939,2]
[400186580,1767178241156,-3462.0,0.00015939,2]
[400186582,1767178241167,-1264.0,0.00015939,2]
[400186584,1767178241177,-432.0,0.00015939,2]
[400186586,1767178241186,-913.0,0.00015939,2]
[400186588,1767178241196,-1199.0,0.00015939,2]
[400186590,1767178241206,-2433.0,0.00015939,2]
[400186592,1767178241215,-4812.0,0.00015939,2]
[400186595,1767178241225,-2351.0,0.00015968,2]
[400186597,1767178241234,-510.05158063,0.00015973,2]
[400186599,1767178241243,-500.0,0.00015973,2]
[400186601,1767178241253,-505.70610325,0.00015973,2]
[400186603,1767178241262,-500.0,0.00015973,2]
[400186605,1767178241273,-500.0,0.00015973,2]
[400186607,1767178241282,-500.0,0.00015973,2]
[400186609,1767178241291,-504.52900939,0.00015973,2]
[400186611,1767178241300,-500.0,0.00015973,2]
[400186613,1767178241309,-500.0,0.00015973,2]
[400186615,1767178241318,-505.32038766,0.00015973,2]
[400186617,1767178241328,-862.96,0.00016017,2]
[400186619,1767178241337,-12035.64,0.00016031,2]
[400186621,1767178241346,-166.66,0.00016112,2]
[400186623,1767178241356,-3720.37620064,0.00016113,2]
[400186624,1767178241366,-9999.99,0.00016116,2]
[400186626,1767178241375,-150.0,0.00016137,2]
[400186629,1767178241385,-340.99810969,0.00016149,2]
[400186631,1767178241395,-162.16080322,0.00016164,2]
[400186633,1767178241405,-150.0,0.00016164,2]
[400186635,1767178241414,-150.0,0.00016164,2]
[400186637,1767178241423,-150.0,0.00016164,2]
[400186639,1767178241433,-175.8191271,0.00016164,2]
[400186641,1767178241443,-170.07019094,0.00016164,2]
[400186643,1767178241452,-150.0,0.00016164,2]
[400186645,1767178241462,-150.0,0.00016164,2]
[400186647,1767178241471,-150.0,0.00016164,2]
[400186649,1767178241481,-150.0,0.00016219,2]
[400186651,1767178241489,-200.0,0.00016274,2]
[400186653,1767178241498,-862.96,0.00016291,2]
[400186655,1767178241507,-202.34852965,0.00016343,2]
[400186657,1767178241516,-150.0,0.0001642,2]
[400186659,1767178241526,-150.0,0.0001642,2]
[400186661,1767178241535,-150.0,0.0001642,2]
[400186663,1767178241545,-561.12,0.00016437,2]
[400186665,1767178241554,-500.0,0.00016438,2]
[400186667,1767178241564,-500.0,0.00016438,2]
[400186669,1767178241574,-500.0,0.00016438,2]
[400186671,1767178241584,-500.0,0.00016438,2]
[400186673,1767178241594,-500.0,0.00016438,2]
[400186675,1767178241604,-500.0,0.00016438,2]
[400186677,1767178241613,-500.0,0.00016438,2]
[400186679,1767178241623,-500.0,0.00016438,2]
[400186681,1767178241632,-534.10476164,0.00016438,2]
[400186683,1767178241642,-500.0,0.00016438,2]
[400186685,1767178241653,-500.0,0.00016438,2]
[400186687,1767178241663,-500.0,0.00016438,2]
[400186689,1767178241674,-500.0,0.00016438,2]
[400186691,1767178241684,-500.0,0.00016438,2]
[400186693,1767178241694,-500.0,0.00016438,2]
[400186695,1767178241703,-500.0,0.00016438,2]
[400186697,1767178241713,-500.0,0.00016438,2]
[400186699,1767178241723,-500.0,0.00016438,2]
[400186702,1767178241734,-500.0,0.00016438,2]
[400186704,1767178241743,-500.0,0.00016438,2]
[400186706,1767178241754,-500.0,0.00016438,2]
[400186708,1767178241768,-500.0,0.00016438,2]
[400186710,1767178241777,-500.0,0.00016438,2]
[400186712,1767178241786,-500.0,0.00016438,2]
[400186714,1767178241796,-500.0,0.00016438,2]
[400186716,1767178241806,-500.0,0.00016438,2]
[400186718,1767178241816,-500.0,0.00016438,2]
[400186720,1767178241826,-500.0,0.00016438,2]
[400186722,1767178241836,-500.0,0.00016438,2]
[400186724,1767178241846,-500.0,0.00016438,2]
[400186726,1767178241856,-500.0,0.00016438,2]
[400186728,1767178241866,-164.68,0.0001644,2]
[400186730,1767178241876,-250.0,0.00016456,2]
[400186732,1767178241885,-500.0,0.00016493,2]
[400186734,1767178241895,-151.80413951,0.00016499,2]
[400186736,1767178241906,-3720.37620064,0.00016506,2]
[400186738,1767178241916,-1000.0,0.00016521,2]
[400186740,1767178241927,-1000.0,0.00016521,2]
[400186742,1767178241936,-1000.0,0.00016521,2]
[400186745,1767178241946,-505.95243998,0.00016521,2]
[400186747,1767178241956,-500.0,0.00016548,2]
[400186749,1767178241965,-862.99801869,0.00016565,2]
[400186751,1767178241977,-825.23,0.00016574,2]
[400186753,1767178241986,-5649.2,0.00016581,2]
[400186755,1767178241995,-166.66,0.00016582,2]
[400186757,1767178242005,-500.0,0.00016602,2]
[400186759,1767178242014,-500.0,0.00016657,2]
[400186761,1767178242023,-391.62241139,0.0001666,2]
[400186763,1767178242032,-150.0,0.00016703,2]
[400186765,1767178242041,-500.0,0.00016712,2]
[400186767,1767178242050,-660.35,0.00016712,2]
[400186769,1767178242059,-1320.7,0.00016712,2]
[400186771,1767178242069,-1320.7,0.00016712,2]
[400186773,1767178242078,-660.35,0.00016712,2]
[400186775,1767178242088,-165.36,0.00016712,2]
[400186777,1767178242101,-823.0,0.00016737,2]
[400186779,1767178242111,-500.0,0.00016767,2]
[400186782,1767178242121,-150.0,0.00016814,2]
[400186784,1767178242130,-150.0,0.00016817,2]
[400186786,1767178242140,-500.0,0.00016822,2]
[400186788,1767178242149,-500.0,0.00016855,2]
[400186790,1767178242159,-25000.0,0.00016856,3]
[400186792,1767178242169,-200.0,0.00016864,2]
[400186794,1767178242178,-25000.0,0.00016865,3]
[400186796,1767178242187,-25000.0,0.00016874,3]
[400186798,1767178242197,-500.0,0.00016876,2]
[400186800,1767178242207,-25000.0,0.00016882,3]
[400186802,1767178242217,-25000.0,0.00016891,3]
[400186804,1767178242226,-10000.0,0.000169,2]
[400186806,1767178242235,-25000.0,0.000169,3]
[400186808,1767178242244,-17041.86737211,0.000169,3]
[400186809,1767178242253,-202.34852965,0.000169,2]
[400186810,1767178242262,-341.34054317,0.000169,2]
[400186811,1767178242271,-11115.06980772,0.000169,2]
[400186812,1767178242281,-2838.61425394,0.000169,2]
[400186813,1767178242290,-3720.37620064,0.000169,2]
[400186814,1767178242299,-441.5280825,0.000169,2]
[400186815,1767178242308,-500.0,0.000169,2]
[400186816,1767178242317,-500.0,0.000169,2]
[400186817,1767178242326,-500.0,0.000169,2]
[400186818,1767178242336,-500.0,0.000169,2]
[400186819,1767178242345,-500.0,0.000169,2]
[400186820,1767178242355,-326.1895363,0.000169,2]
[400186821,1767178242364,-577.19404941,0.000169,2]
[400186823,1767178242373,-977.7784963,0.000169,2]
[400186825,1767178242383,-1421.2184587,0.000169,2]
[400186827,1767178242394,-6224.0,0.000169,2]
[400186830,1767178242404,-150.0,0.00016901,2]
[400186832,1767178242414,-1000.0,0.00016931,2]
[400186834,1767178242423,-619.17615633,0.00016931,2]
[400186836,1767178242433,-168.91070358,0.00016945,2]
[400186838,1767178242443,-497.77022115,0.00016972,2]
[400186840,1767178242452,-500.0,0.00016973,2]
[400186842,1767178242461,-550.00207661,0.00016973,2]
[400186844,1767178242471,-500.0,0.00016973,2]
[400186846,1767178242481,-500.0,0.00016973,2]
[400186848,1767178242490,-500.0,0.00016973,2]
[400186850,1767178242499,-500.0,0.00016973,2]
[400186851,1767178242509,-162.62949941,0.00016973,2]
[400186853,1767178242518,-500.0,0.00016973,2]
[400186855,1767178242528,-500.0,0.00016973,2]
[400186857,1767178242539,-500.0,0.00016973,2]
[400186859,1767178242548,-500.0,0.00016973,2]
[400186861,1767178242557,-500.0,0.00016973,2]
[400186863,1767178242566,-500.0,0.00016973,2]
[400186865,1767178242576,-500.0,0.00016973,2]
[400186867,1767178242586,-500.0,0.00016973,2]
[400186869,1767178242596,-500.0,0.00016973,2]
[400186871,1767178242605,-501.00189818,0.00016973,2]
[400186873,1767178242615,-500.0,0.00016973,2]
[400186875,1767178242625,-500.60403875,0.00016973,2]
[400186877,1767178242635,-500.0,0.00016973,2]
[400186880,1767178242650,-519.646537,0.00016973,2]
[400186882,1767178242659,-500.0,0.00016973,2]
[400186884,1767178242669,-500.0,0.00016973,2]
[400186886,1767178242679,-500.0,0.00016973,2]
[400186888,1767178242689,-500.0,0.00016973,2]
[400186890,1767178242699,-162.50883671,0.00016973,2]
[400186892,1767178242709,-162.29676587,0.00016973,2]
[400186894,1767178242718,-500.0,0.00016973,2]
[400186896,1767178242728,-500.0,0.00016973,2]
[400186898,1767178242738,-571.16127303,0.00016973,2]
[400186900,1767178242748,-160.4337152,0.00016973,2]
[400186902,1767178242761,-640.9293227,0.00016973,2]
[400186904,1767178242771,-160.43167139,0.00016973,2]
[400186906,1767178242781,-177.93864097,0.00016973,2]
[400186908,1767178242791,-500.0,0.00016973,2]
[400186910,1767178242803,-500.0,0.00016973,2]
[400186912,1767178242813,-500.0,0.00016973,2]
[400186914,1767178242823,-160.42561905,0.00016973,2]
[400186917,1767178242835,-396.18408407,0.00016973,2]
[400186919,1767178242846,-453.14856339,0.00016973,2]
[400186921,1767178242856,-556.81874578,0.00016973,2]
[400186923,1767178242866,-335.11797254,0.00016973,2]
[400186925,1767178242875,-500.0,0.00016973,2]
[400186927,1767178242886,-500.0,0.00016973,2]
[400186954,1767178243102,-500.0,0.00016973,2]
[400186956,1767178243113,-640.49953855,0.00016973,2]
[400186958,1767178243123,-500.0,0.00016973,2]
[400186960,1767178243133,-500.0,0.00016973,2]
[400186962,1767178243142,-160.40696499,0.00016973,2]
[400186964,1767178243151,-160.40025967,0.00016973,2]
[400186966,1767178243161,-500.0,0.00016973,2]
[400186968,1767178243171,-500.0,0.00016973,2]
[400186970,1767178243181,-161.33309619,0.00016973,2]
[400186972,1767178243191,-160.43464258,0.00016973,2]
[400186974,1767178243201,-156.77400144,0.00016973,2]
[400186976,1767178243210,-500.0,0.00016973,2]
[400186978,1767178243220,-150.1570918,0.00016973,2]
[400186980,1767178243229,-160.40600151,0.00016973,2]
[400186982,1767178243238,-427.40368537,0.00016973,2]
[400186984,1767178243248,-160.43301019,0.00016973,2]
[400186986,1767178243257,-500.0,0.00016973,2]
[400186988,1767178243267,-150.4025269,0.00016973,2]
[400186990,1767178243276,-500.0,0.00016973,2]
[400186992,1767178243285,-500.0,0.00016973,2]
[400186994,1767178243296,-500.0,0.00016973,2]
[400186996,1767178243306,-500.0,0.00016973,2]
[400186998,1767178243319,-500.0,0.00016973,2]
[400187000,1767178243329,-500.0,0.00016973,2]
[400187003,1767178243340,-500.0,0.00016973,2]
[400187005,1767178243350,-500.0,0.00016973,2]
[400187007,1767178243359,-500.0,0.00016973,2]
[400187009,1767178243369,-500.0,0.00016973,2]
[400187011,1767178243379,-167.17790449,0.00016973,2]
[400187013,1767178243389,-345.18608284,0.00016973,2]
[400187015,1767178243399,-500.0,0.00016973,2]
[400187017,1767178243410,-500.0,0.00016973,2]
[400187019,1767178243420,-207.79365149,0.00016973,2]
[400187021,1767178243430,-500.0,0.00016973,2]
[400187023,1767178243440,-500.0,0.00016973,2]
[400187025,1767178243449,-500.0,0.00016973,2]
[400187027,1767178243459,-159.68383532,0.00016973,2]
[400187029,1767178243468,-506.98216206,0.00016973,2]
[400187031,1767178243478,-150.0,0.00016973,2]
[400187033,1767178243488,-151.80413951,0.00016984,2]
[400187035,1767178243498,-606.0,0.00016986,2]
[400187038,1767178243511,-167.90361921,0.00016986,2]
[400187040,1767178243522,-157.83595805,0.00016986,2]
[400187042,1767178243531,-211.05978879,0.00016986,2]
[400187044,1767178243542,-190.90622457,0.00016986,2]
[400187046,1767178243552,-154.04577029,0.00016986,2]
[400187048,1767178243562,-150.0,0.00016987,2]
[400187050,1767178243572,-277.4373624,0.00016991,2]
[400187052,1767178243582,-5228.7680775,0.00016995,2]
[400187054,1767178243592,-45916.0789855,0.00016998,2]
[400187056,1767178243602,-197.2966511,0.00016998,2]
[400187058,1767178243613,-96402.3615211,0.00016998,2]
[400187060,1767178243622,-20940.3824706,0.00016999,2]
[400187062,1767178243633,-467.19773594,0.00016999,2]
[400187064,1767178243643,-567.50706892,0.00016999,2]
[400187066,1767178243653,-300.0,0.00016999,2]
[400187068,1767178243663,-300.0,0.00016999,2]
[400187070,1767178243673,-300.0,0.00016999,2]
[400187073,1767178243683,-666.0,0.00016999,2]
[400187075,1767178243695,-300.0,0.00016999,2]
[400187077,1767178243708,-300.0,0.00016999,2]
[400187079,1767178243718,-300.0,0.00016999,2]
[400187081,1767178243728,-666.0,0.00016999,2]
[400187083,1767178243738,-150.0,0.00016999,2]
[400187085,1767178243749,-311130.76647211,0.00017,2]
[400187087,1767178243763,-881371.32130901,0.00017,2]
[400187105,1767178243929,-79778.39253198,0.00017,2]
[400187107,1767178243942,-13866.1066969,0.00017,2]
[400187110,1767178243954,-3608.27472446,0.00017,2]
[400187137,1767178244206,-1.7e-07,0.00017,2]
[400187139,1767178244218,-3213.84762458,0.00017,2]
[400187161,1767178244419,-500.0,0.00013862,2]
[400187163,1767178244430,-932.6256,0.00014538,2]
[400187165,1767178244441,-1422.01996795,0.00014538,2]
[400187167,1767178244452,-3724.0582651,0.00014538,2]
[400187170,1767178244463,-151.0,0.00015221,2]
[400187172,1767178244472,-6542.0,0.00015939,2]
[400187174,1767178244482,-29960.65870389,0.00017,2]
[400187176,1767178244494,-721.8465621,0.00017,2]
[400187178,1767178244506,-8939.910458,0.00017,2]
[400187192,1767178244637,-151.0,0.00015221,2]
[400187195,1767178244647,-6732.494434,0.00017,2]
[400187197,1767178244660,-1844.40697459,0.00017,2]
[400187199,1767178244671,-1796.40608397,0.00017,2]
[400187201,1767178244682,-1134.51786749,0.00017,2]
[400187203,1767178244694,-3050.0,0.00017,2]
[400187241,1767178245562,-2332.25914526,0.00017,2]
[400187242,1767178245574,-19014.09979809,0.00017,2]
[400187243,1767178245619,-5561.99188177,0.00017,2]
[400187245,1767178245673,-753.01482349,0.00017,2]
[400187246,1767178245686,-4729.56311113,0.00017,2]
[400187247,1767178245703,-651.4799978,0.00017,2]
[400187248,1767178245729,-1399.79386997,0.00017,2]
[400187249,1767178245740,-993.0,0.00017,2]
[400187250,1767178245751,-9300.4639212,0.00017,2]
[400187251,1767178261570,500.0,0.00043189,120]
[400187252,1767178274679,896.62448668,0.00043189,120]
[400187253,1767178324559,222.2,0.00043189,120]
[400187254,1767178326792,599.90625443,0.00043189,120]
[400187255,1767178405876,5000.0,0.00043189,37]
[400187256,1767178428793,5500.0,0.00043189,30]
[400187257,1767178448141,2560.0,0.00043189,30]
[400187258,1767178523354,2413.183841,0.00043189,120]
[400187259,1767178564644,500.0,0.00043189,120]
[400187261,1767178672158,50000.0,0.00043189,120]
[400187262,1767178679034,10000.0,0.00043189,120]
[400187263,1767178684527,10000.0,0.00043189,120]
[400187264,1767178690545,10000.0,0.00043189,120]
[400187265,1767178696292,10000.0,0.00043189,120]
[400187266,1767178705940,10000.0,0.00043189,120]
[400187267,1767178721486,5901.762879,0.00043189,120]
[400187276,1767178861212,500.0,0.00043198,120]
[400187278,1767178892394,100030.0,0.00043198,120]
[400187279,1767178946035,160.0,0.00043198,30]
[400187280,1767178946113,160.0,0.00043198,30]
[400187281,1767178946192,160.0,0.00043198,30]